bitfinex/quotes_ETHUSD_20240702
["timestamp","ask_amount","ask_price","bid_price","bid_amount"]
[1719938580112,3.537,3417.4,3416.9,2.92661]
[1719938580311,0.50683214,3417.3,3416.9,2.92661]
[1719938580635,0.50683214,3417.2,3416.9,2.92661]
[1719938580834,0.50683214,3417.1,3416.9,2.92661]
[1719938581041,0.50683214,3417.0,3416.9,2.92661]
[1719938581334,0.50683214,3417.0,3416.9,3.47567284]
[1719938582100,2.379,3417.4,3416.9,3.47567284]
[1719938582301,2.379,3417.4,3416.9,2.92661]
[1719938582302,0.50681187,3417.3,3416.9,2.92661]
[1719938582610,0.50681187,3417.2,3416.9,2.92661]
[1719938582807,0.50681187,3417.1,3416.9,2.92661]
[1719938583103,2.379,3417.4,3416.9,2.92661]
[1719938583313,0.50679778,3417.3,3417.0,2.92653]
[1719938583538,0.50679778,3417.2,3417.0,2.92653]
[1719938583762,0.50679778,3417.1,3417.0,2.92653]
[1719938583931,0.50679778,3417.5,3417.0,2.92653]
[1719938584126,0.50679778,3417.4,3417.0,2.92653]
[1719938584442,0.50679778,3417.3,3417.0,2.92653]
[1719938584737,0.50679778,3417.2,3417.0,2.92653]
[1719938584905,3.0,3417.8,3417.1,2.92645]
[1719938585138,0.5067832,3417.7,3417.1,2.92645]
[1719938585467,0.5067832,3417.6,3417.2,2.92635]
[1719938585674,0.5067832,3417.5,3417.2,2.92635]
[1719938585856,0.5067832,3417.7,3417.2,2.92635]
[1719938586063,0.5067832,3417.6,3417.2,2.92635]
[1719938586365,0.5067832,3417.5,3417.2,2.92635]
[1719938586583,0.5067832,3417.4,3417.2,2.92635]
[1719938586735,0.5067832,3417.3,3417.2,2.92635]
[1719938587448,0.5067832,3417.7,3417.2,2.92635]
[1719938587648,0.5067832,3417.6,3417.2,2.92635]
[1719938587872,0.5067832,3417.7,3417.2,2.92635]
[1719938588036,0.5067832,3417.6,3417.2,2.92635]
[1719938588229,0.5067832,3417.5,3417.2,2.92635]
[1719938588430,0.5067832,3417.4,3417.2,2.92635]
[1719938588771,4.158,3417.8,3417.2,2.92635]
[1719938588772,0.50678209,3417.3,3417.2,2.92635]
[1719938589969,0.50678209,3417.3,3417.2,2.98161163]
[1719938591773,1.158,3417.8,3417.3,2.92625]
[1719938591983,0.50677423,3417.7,3417.3,2.92625]
[1719938592144,0.50677423,3417.7,3417.4,0.05522678]
[1719938592355,0.50676464,3417.6,3417.3,5.85249]
[1719938592560,0.50676464,3417.5,3417.3,2.92623]
[1719938592766,0.50676464,3417.4,3417.3,2.92623]
[1719938592971,0.50676464,3417.7,3417.3,5.85246]
[1719938593180,3.0,3417.9,3417.3,5.85246]
[1719938593181,0.50676464,3417.6,3417.3,2.9262]
[1719938593385,5.23549,3418.0,3417.3,2.9262]
[1719938593386,2.3098,3418.0,3417.5,2.92611]
[1719938593688,0.50673891,3417.9,3417.6,2.92601]
[1719938593865,0.50673891,3417.8,3417.7,2.92588]
[1719938594955,0.50672673,3417.8,3417.6,2.92601]
[1719938595184,1.01345745,3417.7,3417.6,2.92601]
[1719938595369,0.50673072,3417.7,3417.6,2.92601]
[1719938598152,3.0,3418.1,3417.6,2.92601]
[1719938598383,0.50672937,3417.7,3417.6,2.92601]
[1719938598571,3.0,3418.1,3417.7,2.92593]
[1719938598799,0.50672905,3418.0,3417.7,2.92593]
[1719938598951,0.50672905,3417.9,3417.7,2.92593]
[1719938599147,0.50672905,3418.0,3417.7,2.92593]
[1719938599483,0.50672905,3417.9,3417.7,2.92593]
[1719938599676,0.50672905,3418.0,3417.7,2.92593]
[1719938599881,0.50672905,3417.9,3417.7,2.92593]
[1719938600049,0.50672905,3417.8,3417.7,2.92593]
[1719938601357,0.5067288,3417.8,3417.7,2.92593]
[1719938604599,0.50672755,3417.8,3417.7,2.98104883]
[1719938604890,3.0,3418.1,3417.7,0.05511883]
[1719938605102,0.50673616,3418.0,3417.7,0.05511883]
[1719938605391,0.50673616,3417.9,3417.7,0.05511883]
[1719938605589,0.50673616,3417.8,3417.7,0.05511883]
[1719938607694,0.50673305,3417.8,3417.7,0.05511883]
[1719938608580,0.50673305,3417.8,3417.4,5.85236]
[1719938608793,0.50673305,3417.7,3417.5,0.05508852]
[1719938608982,2.3137,3417.8,3417.3,2.92626]
[1719938609162,0.50673305,3417.7,3417.4,2.98128594]
[1719938609361,0.50673305,3417.6,3417.4,2.98128594]
[1719938609596,8.36935,3418.1,3417.4,2.98128594]
[1719938609797,0.50672253,3418.0,3417.4,2.98128594]
[1719938609979,0.50672253,3417.9,3417.4,2.98128594]
[1719938610173,0.50672253,3417.8,3417.4,2.98128594]
[1719938610374,0.50672253,3417.7,3417.4,2.98128594]
[1719938610587,8.36935,3418.1,3417.4,2.98128594]
[1719938610778,0.50671877,3418.0,3417.4,2.98128594]
[1719938610967,0.50671858,3417.9,3417.4,2.98128594]
[1719938611176,0.50671858,3417.8,3417.4,2.98128594]
[1719938611495,0.50671858,3417.7,3417.4,2.98128594]
[1719938611687,0.50671858,3418.0,3417.4,3.68784753]
[1719938611860,0.50671858,3418.0,3417.4,2.98128594]
[1719938613466,0.50671858,3418.0,3417.6,5.24922]
[1719938613698,0.50671858,3417.9,3417.7,2.92594]
[1719938613903,3.0,3418.2,3417.7,3.0395063]
[1719938613904,0.50671858,3417.8,3417.7,3.0395063]
[1719938614109,0.50668763,3417.8,3417.7,3.98417193]
[1719938614609,0.50668763,3417.8,3417.7,3.9256593]
[1719938614965,0.50667975,3417.8,3417.7,3.9256593]
[1719938615408,2.301,3418.3,3417.7,3.9256593]
[1719938615566,0.50667934,3418.2,3417.7,3.03950671]
[1719938615766,0.50667934,3418.1,3417.7,3.03950671]
[1719938615967,0.50667934,3418.0,3417.7,3.03950671]
[1719938616201,0.50667934,3417.9,3417.7,3.03950671]
[1719938616497,0.50667934,3417.8,3417.7,3.03950671]
[1719938616681,0.50667676,3418.2,3417.8,0.82886567]
[1719938616862,0.50667568,3418.1,3417.8,0.82886567]
[1719938617063,2.301,3418.3,3417.9,0.05501882]
[1719938617064,0.50667568,3418.0,3417.9,0.05501882]
[1719938617269,2.2599,3418.6,3417.9,4.13878882]
[1719938617469,0.50665811,3418.5,3418.0,0.05850754]
[1719938617704,3.0,3418.5,3418.0,2.92568]
[1719938618021,0.50665685,3418.4,3418.1,0.05486568]
[1719938618312,0.50665685,3418.3,3418.1,0.05486568]
[1719938618604,0.50665685,3418.2,3418.1,0.05486568]
[1719938620325,3.0,3418.5,3418.1,0.05486568]
[1719938620608,0.50665473,3418.4,3418.1,0.05486568]
[1719938620923,0.50665463,3418.3,3418.1,0.05486568]
[1719938621069,3.50665463,3418.5,3418.1,0.05486568]
[1719938621269,0.50665463,3418.4,3418.1,0.05486568]
[1719938621582,0.50665463,3418.3,3418.1,0.05486568]
[1719938621777,0.50665463,3418.4,3418.1,0.05486568]
[1719938621973,0.50665463,3418.3,3418.1,0.05486568]
[1719938622197,0.50665463,3418.2,3418.1,0.05486568]
[1719938622797,0.50665463,3418.2,3417.4,2.3232]
[1719938622798,2.99495463,3418.2,3417.4,2.3232]
[1719938622991,0.50665463,3418.1,3417.6,2.92595]
[1719938623309,0.50665463,3418.1,3417.7,0.05493537]
[1719938623510,2.4883,3418.2,3417.7,0.05493537]
[1719938623511,0.50669375,3418.0,3417.7,0.05493537]
[1719938623813,0.50669418,3418.1,3417.7,2.98084537]
[1719938626573,0.50669418,3418.1,3417.7,3.94890661]
[1719938626787,2.4883,3418.2,3417.7,3.94890661]
[1719938626983,2.4883,3418.2,3417.7,2.98084537]
[1719938627408,0.50670545,3418.1,3417.7,2.98084537]
[1719938627627,0.50670547,3418.0,3417.7,2.98084537]
[1719938629389,0.50670547,3418.0,3417.7,0.05493537]
[1719938629597,0.50670547,3418.0,3417.6,2.92601]
[1719938629798,0.50670547,3418.0,3417.7,0.05490639]
[1719938630412,5.41382,3418.2,3417.7,0.05490639]
[1719938631021,0.50670679,3417.9,3417.7,0.05490639]
[1719938632814,5.41382,3418.2,3417.7,0.05490639]
[1719938636993,3.0,3418.8,3417.8,2.3232]
[1719938637192,3.0,3418.8,3418.1,4.08354]
[1719938637498,3.0,3418.8,3418.3,1.158]
[1719938637682,0.50661614,3418.7,3418.2,2.98031204]
[1719938637887,0.50661614,3418.6,3418.4,0.0547772]
[1719938638082,0.50661614,3418.5,3418.3,0.05479462]
[1719938638316,0.50661614,3418.4,3418.3,5.30335462]
[1719938638524,3.0,3418.8,3418.4,2.9253]
[1719938638686,0.50658029,3418.7,3418.4,2.9253]
[1719938638886,0.50658029,3418.6,3418.5,0.05474289]
[1719938639387,3.0,3419.0,3418.5,0.05474289]
[1719938639593,0.50656949,3418.6,3418.5,0.05474289]
[1719938640190,0.50656949,3418.9,3418.5,4.06684416]
[1719938640601,0.50656949,3419.0,3418.5,0.05474289]
[1719938640891,1.158,3418.8,3418.5,0.05474289]
[1719938641091,0.50656949,3418.7,3418.5,0.05474289]
[1719938642022,0.50656949,3418.7,3418.2,2.92551]
[1719938642023,1.158,3418.8,3418.6,0.05455171]
[1719938642246,0.50658461,3418.7,3418.3,2.92542]
[1719938642395,1.158,3418.6,3418.4,0.05437209]
[1719938642717,0.50658461,3418.5,3418.1,2.92559]
[1719938643408,0.50658461,3418.5,3418.2,2.9255]
[1719938643590,0.50658461,3418.6,3418.2,2.9255]
[1719938644589,2.3972,3420.0,3418.5,2.9252]
[1719938644944,1.158,3419.3,3418.4,2.3232]
[1719938645158,4.158,3419.3,3418.5,2.9252]
[1719938645309,1.158,3419.3,3418.6,2.92512]
[1719938645507,4.158,3419.3,3418.6,2.92512]
[1719938646656,1.158,3419.1,3418.7,2.92508]
[1719938648225,4.158,3419.3,3418.7,2.92508]
[1719938648434,4.158,3419.3,3418.7,3.81500036]
[1719938648733,1.158,3419.2,3418.7,3.81500036]
[1719938649771,1.158,3419.2,3418.8,0.05233848]
[1719938650266,1.158,3419.2,3418.7,3.81500036]
[1719938650267,1.158,3419.2,3418.9,0.05232106]
[1719938650412,1.158,3419.2,3418.7,3.81500036]
[1719938650618,1.158,3419.2,3418.8,0.05233848]
[1719938650833,1.158,3419.2,3418.7,3.81500036]
[1719938651057,1.158,3419.2,3418.8,0.79893088]
[1719938652783,2.3972,3419.5,3418.8,0.79893088]
[1719938653057,2.3972,3419.5,3418.8,3.72391088]
[1719938653058,1.158,3419.4,3418.8,3.72391088]
[1719938653259,3.0,3419.4,3418.9,2.92489]
[1719938653564,3.0,3419.4,3419.0,0.05230365]
[1719938653718,2.3972,3419.5,3419.0,0.05230365]
[1719938653719,5.3972,3419.5,3419.0,0.05230365]
[1719938653925,4.158,3419.4,3419.0,0.05230365]
[1719938654124,1.158,3419.4,3419.0,0.05230365]
[1719938654456,4.158,3419.4,3419.0,0.05230365]
[1719938654625,0.50652276,3419.3,3419.0,0.05230365]
[1719938654966,0.50652359,3419.2,3419.0,0.05230365]
[1719938655136,4.158,3419.4,3419.0,0.05230365]
[1719938655457,0.5065277,3419.3,3419.0,0.05230365]
[1719938655632,0.5065277,3419.2,3419.0,0.05230365]
[1719938655835,4.158,3419.4,3419.0,0.05230365]
[1719938656132,0.5065188,3419.3,3419.0,0.05230365]
[1719938656446,0.50652048,3419.2,3419.0,0.05230365]
[1719938656761,4.158,3419.4,3418.9,2.9249]
[1719938656921,0.50653743,3419.3,3418.9,2.9249]
[1719938657565,0.50653743,3419.3,3418.7,5.2482]
[1719938657722,1.158,3419.2,3418.7,2.925]
[1719938657922,0.50655142,3419.1,3418.7,2.925]
[1719938658122,1.158,3419.2,3418.7,2.925]
[1719938658323,0.5065505,3419.1,3418.7,2.925]
[1719938658550,1.158,3419.2,3418.7,2.925]
[1719938658732,0.50655048,3419.1,3418.7,2.925]
[1719938658935,1.158,3419.2,3418.7,2.925]
[1719938659159,0.50655135,3419.1,3418.7,2.925]
[1719938659460,1.158,3419.2,3418.7,2.925]
[1719938659666,3.5461,3419.0,3418.5,2.92521]
[1719938659836,0.50655225,3418.9,3418.5,2.92521]
[1719938660030,0.50655225,3418.9,3418.1,5.24874]
[1719938660031,1.158,3418.6,3418.1,5.24874]
[1719938660253,1.158,3418.6,3418.1,2.92554]
[1719938660440,1.158,3418.6,3417.9,5.24893]
[1719938660441,1.158,3418.6,3418.2,2.92551]
[1719938660838,1.158,3418.6,3417.8,2.92579]
[1719938660839,1.158,3418.3,3417.8,2.92579]
[1719938662165,1.158,3418.3,3417.6,0.54366354]
[1719938662340,1.158,3418.3,3417.7,2.92586]
[1719938663893,2.92527,3418.5,3417.7,2.92586]
[1719938664069,0.50666756,3418.4,3417.7,2.92586]
[1719938664268,2.92527,3418.5,3417.8,0.86924035]
[1719938664479,0.50667002,3418.4,3417.8,0.86924035]
[1719938664675,0.50667002,3418.3,3417.9,0.05259394]
[1719938664844,2.92527,3418.5,3417.9,0.05259394]
[1719938665040,0.50667005,3418.4,3417.9,0.05259394]
[1719938665247,0.50667005,3418.3,3417.9,0.05259394]
[1719938665467,2.92527,3418.5,3417.9,0.49172972]
[1719938665787,0.50666988,3418.4,3417.9,0.49172972]
[1719938665958,2.92527,3418.5,3417.9,0.49172972]
[1719938666294,0.50666426,3418.4,3417.9,0.49172972]
[1719938666491,0.50666426,3418.4,3418.0,0.72126801]
[1719938666783,0.50666426,3418.3,3418.0,0.72126801]
[1719938666980,2.92527,3418.5,3418.1,0.0525591]
[1719938667184,0.50666445,3418.4,3418.1,0.0525591]
[1719938667385,0.50666445,3418.3,3417.7,2.92586]
[1719938667543,5.85061,3418.5,3418.2,0.05254168]
[1719938667853,0.50668697,3418.4,3418.3,0.05252426]
[1719938668057,5.85061,3418.5,3417.7,2.92586]
[1719938668265,0.50668617,3418.4,3417.8,0.86748436]
[1719938668441,0.50668617,3418.3,3417.8,0.86748436]
[1719938668647,0.50668617,3418.2,3417.9,0.37933444]
[1719938668962,5.85061,3418.5,3418.0,0.05257652]
[1719938669146,0.50667951,3418.4,3418.0,0.05257652]
[1719938669345,0.50667951,3418.3,3418.0,0.05257652]
[1719938669579,0.50667951,3418.4,3418.0,0.05257652]
[1719938669785,0.50667951,3418.3,3418.0,0.05257652]
[1719938669978,5.85061,3418.5,3418.0,0.05257652]
[1719938669979,0.50667951,3418.4,3418.0,0.05257652]
[1719938670180,0.50667951,3418.3,3418.0,0.05257652]
[1719938670368,0.50667951,3418.4,3418.0,0.05257652]
[1719938670685,0.50667575,3418.3,3418.0,0.05257652]
[1719938670893,5.85061,3418.5,3418.0,0.05257652]
[1719938671190,2.92534,3418.4,3418.0,0.05257652]
[1719938671407,0.50666924,3418.3,3418.0,0.05257652]
[1719938673006,0.50666924,3418.3,3418.0,0.38835162]
[1719938673499,2.92534,3418.4,3418.0,0.38835162]
[1719938675712,0.50666288,3418.3,3418.0,0.38835162]
[1719938675884,2.92534,3418.4,3418.0,0.38835162]
[1719938676081,0.50666868,3418.3,3418.0,0.38835162]
[1719938676316,2.92534,3418.4,3418.1,0.33141916]
[1719938676628,2.92534,3418.4,3418.2,0.05269575]
[1719938680095,5.36753,3418.7,3418.2,0.05269575]
[1719938680302,0.50665214,3418.6,3418.2,0.05269575]
[1719938680499,0.50664713,3418.5,3418.2,0.05269575]
[1719938680725,0.50664713,3418.4,3418.2,0.05269575]
[1719938680887,5.36753,3418.7,3418.2,0.05269575]
[1719938680888,2.9253,3418.5,3418.2,0.05269575]
[1719938681090,0.50664713,3418.4,3418.2,0.05269575]
[1719938681291,2.9253,3418.5,3418.2,0.05269575]
[1719938681537,0.50665778,3418.4,3418.2,0.05269575]
[1719938681701,2.9253,3418.5,3418.2,0.05269575]
[1719938681903,0.50665521,3418.4,3418.2,0.05269575]
[1719938682193,2.9253,3418.5,3418.2,0.05269575]
[1719938682388,0.50665657,3418.4,3418.2,0.05269575]
[1719938682596,2.9253,3418.5,3418.2,0.61540324]
[1719938683030,2.4955,3419.0,3418.3,5.2096]
[1719938683031,0.50664473,3418.4,3418.3,5.2096]
[1719938683208,2.92479,3419.1,3418.4,2.92531]
[1719938683413,0.50660009,3419.0,3418.5,0.05260738]
[1719938683614,2.92479,3419.1,3418.5,0.05260738]
[1719938683615,5.8496,3419.1,3418.5,0.05260738]
[1719938683946,0.50658509,3419.0,3418.5,0.05260738]
[1719938684139,0.50658595,3418.9,3418.5,0.05260738]
[1719938684316,0.50658595,3418.8,3418.5,0.05260738]
[1719938684515,0.50658595,3419.0,3418.5,0.05260738]
[1719938684836,0.50658595,3418.9,3418.5,0.05260738]
[1719938685035,0.50658595,3418.8,3418.5,0.05260738]
[1719938685246,0.50658595,3418.7,3418.6,0.30015598]
[1719938685453,0.50658595,3418.7,3418.6,0.35274594]
[1719938686905,1.155,3419.0,3418.6,0.35274594]
[1719938687130,0.506586,3418.7,3418.6,0.35274594]
[1719938690103,1.155,3419.0,3418.6,0.35274594]
[1719938690311,0.506581,3418.9,3418.6,0.35274594]
[1719938690506,0.506581,3418.9,3418.5,2.92525]
[1719938690724,0.506581,3418.9,3418.6,0.05249849]
[1719938692934,1.155,3418.8,3418.6,0.05249849]
[1719938693250,0.50660113,3418.7,3418.3,2.92534]
[1719938696759,0.50661126,3418.6,3418.3,2.92534]
[1719938696949,0.50661126,3418.5,3418.3,2.92534]
[1719938697133,3.5525,3418.8,3418.4,0.05245869]
[1719938697333,0.50661303,3418.7,3418.3,2.92534]
[1719938697537,0.50661303,3418.6,3418.3,2.92534]
[1719938697741,0.50661303,3418.7,3418.3,2.92534]
[1719938697943,0.50661303,3418.7,3418.4,0.0524948]
[1719938698241,0.50661303,3418.7,3418.3,2.92534]
[1719938698636,0.50661303,3418.7,3418.3,3.73666]
[1719938698838,0.5066151,3418.6,3418.4,0.0524948]
[1719938699127,0.5066151,3418.5,3418.4,0.0524948]
[1719938699873,3.5525,3418.8,3418.4,0.0524948]
[1719938700173,0.50660962,3418.7,3418.4,0.0524948]
[1719938700478,0.50660962,3418.6,3418.4,0.0524948]
[1719938700628,0.50660962,3418.5,3418.4,0.0524948]
[1719938700824,0.50660962,3418.7,3418.4,0.0524948]
[1719938702431,3.5525,3418.8,3418.4,0.0524948]
[1719938702626,0.50662773,3418.6,3418.4,0.0524948]
[1719938702832,1.66162773,3418.5,3418.4,0.0524948]
[1719938703070,1.66162773,3418.5,3418.0,2.92568]
[1719938703248,1.66162773,3418.5,3418.0,3.743142]
[1719938703249,1.155,3418.5,3418.0,3.743142]
[1719938703426,0.50664018,3418.4,3418.1,0.05256612]
[1719938703755,0.50664018,3418.3,3418.1,0.05256612]
[1719938703997,1.155,3418.5,3418.1,0.05256612]
[1719938703998,0.50664018,3418.4,3418.1,0.05256612]
[1719938704133,0.50664173,3418.3,3418.1,0.95703093]
[1719938704468,1.155,3418.5,3418.1,0.95703093]
[1719938704648,0.50664428,3418.4,3418.1,0.95703093]
[1719938704848,0.50664428,3418.3,3418.1,0.95703093]
[1719938705067,1.155,3418.5,3418.1,0.95703093]
[1719938705368,0.50664333,3418.4,3418.1,0.95703093]
[1719938705581,0.50664351,3418.3,3418.1,0.95703093]
[1719938705866,2.92518,3418.6,3418.1,0.95703093]
[1719938706071,0.50663651,3418.5,3418.1,0.95703093]
[1719938706268,0.50663651,3418.4,3418.1,0.95703093]
[1719938706572,0.50663651,3418.3,3418.1,0.95703093]
[1719938706776,2.92518,3418.6,3418.1,0.95703093]
[1719938707079,0.50663593,3418.5,3418.1,0.95703093]
[1719938707249,0.50663593,3418.4,3418.2,0.68084509]
[1719938707448,0.50663593,3418.3,3418.2,0.68084509]
[1719938707966,0.50663593,3418.3,3418.2,3.00404509]
[1719938708169,0.50663593,3418.3,3418.2,5.98806105]
[1719938708478,4.38503346,3419.1,3418.5,2.92523]
[1719938708479,0.30529346,3419.1,3418.5,2.92523]
[1719938708689,0.50657182,3419.0,3418.6,0.35101931]
[1719938709024,0.50657,3418.9,3418.6,3.27618931]
[1719938709146,0.50657,3418.9,3418.6,3.217693]
[1719938709147,0.50656591,3418.9,3418.6,3.217693]
[1719938709338,0.50656591,3418.8,3418.7,0.6142923]
[1719938709676,0.50656591,3418.8,3418.7,0.66677078]
[1719938711751,0.5065692,3418.8,3418.7,0.66677078]
[1719938716385,0.5065692,3418.8,3418.7,3.59185078]
[1719938716535,0.5065692,3418.8,3418.7,5.87435078]
[1719938716957,2.4865,3419.5,3418.9,2.92487]
[1719938717256,0.50652477,3419.4,3418.9,2.98336115]
[1719938717474,0.50652477,3419.3,3419.0,0.05225513]
[1719938717649,0.50652477,3419.2,3419.0,0.05225513]
[1719938717846,0.50652477,3419.1,3419.0,0.05225513]
[1719938718079,0.50650279,3419.1,3419.0,0.05225513]
[1719938718285,0.50650279,3419.1,3419.0,3.96001522]
[1719938719185,0.50650279,3419.1,3419.0,4.01850433]
[1719938720701,4.155,3419.6,3419.0,4.01850433]
[1719938720702,0.50650436,3419.5,3419.0,4.01850433]
[1719938720888,0.50650436,3419.5,3419.0,2.97708513]
[1719938721294,2.4932,3419.3,3419.0,0.05225513]
[1719938721498,1.155,3419.2,3419.0,0.05225513]
[1719938722025,0.50655633,3419.1,3418.5,2.92519]
[1719938722169,0.50655633,3419.0,3418.6,3.510217]
[1719938722480,4.07967,3419.2,3418.6,3.510217]
[1719938722481,0.50655633,3418.9,3418.6,3.510217]
[1719938722684,0.50655633,3419.1,3418.6,3.510217]
[1719938722871,0.50655633,3419.0,3418.6,3.510217]
[1719938723077,0.50655633,3418.9,3418.7,0.6435407]
[1719938723394,0.50655633,3418.8,3418.7,0.6435407]
[1719938723598,0.50655633,3419.1,3418.7,0.6435407]
[1719938723915,0.50655633,3419.1,3418.7,2.9667407]
[1719938724140,0.50655633,3419.1,3418.8,0.88170907]
[1719938724309,0.50653737,3419.0,3418.8,0.88170907]
[1719938724652,0.50653737,3418.9,3418.8,0.88170907]
[1719938724930,0.50653737,3418.9,3418.8,0.94020516]
[1719938725153,5.30421,3419.5,3418.8,0.94020516]
[1719938725154,6.45921,3419.5,3418.8,0.94020516]
[1719938725353,0.50651331,3419.4,3418.8,3.86520516]
[1719938725557,0.50651331,3419.3,3418.9,0.91134752]
[1719938725696,0.50651331,3419.2,3418.9,0.91134752]
[1719938725897,0.50651331,3419.1,3419.0,0.97280465]
[1719938726098,0.50651331,3419.1,3419.0,3.89763205]
[1719938726333,1.155,3419.6,3419.0,3.89763205]
[1719938726543,0.50650233,3419.5,3419.0,3.89763205]
[1719938726844,0.50650233,3419.4,3419.1,2.92474]
[1719938727136,0.50650233,3419.3,3419.2,3.66536376]
[1719938727335,0.50650233,3419.3,3419.2,3.60687721]
[1719938727535,4.155,3419.7,3419.2,3.60687721]
[1719938727743,0.50649592,3419.6,3419.2,3.60687721]
[1719938728049,0.50649592,3419.5,3419.3,0.65317072]
[1719938728205,0.50649592,3419.4,3419.3,0.65317072]
[1719938730609,4.155,3419.7,3419.3,0.65317072]
[1719938730807,0.50649657,3419.4,3419.2,2.92464]
[1719938731019,0.50649657,3419.3,3419.2,2.92464]
[1719938732621,0.50649657,3419.3,3419.0,5.8496]
[1719938732819,0.30498096,3419.6,3419.0,2.92477]
[1719938733021,1.66150057,3419.5,3419.0,3.742062]
[1719938733365,0.50650057,3419.4,3419.0,3.742062]
[1719938733560,0.50650057,3419.4,3418.8,2.92495]
[1719938733561,2.472,3419.3,3418.8,2.92495]
[1719938733709,0.50650057,3419.2,3418.8,2.92495]
[1719938733911,2.92445,3419.5,3418.9,2.3232]
[1719938734225,4.07945,3419.5,3418.9,3.256031]
[1719938734429,0.50650973,3419.4,3418.9,3.256031]
[1719938734639,0.50650973,3419.3,3418.9,3.256031]
[1719938734812,0.50650973,3419.2,3418.9,3.256031]
[1719938735155,4.38429096,3419.6,3419.0,0.6180981]
[1719938735351,0.5065058,3419.5,3419.0,0.6180981]
[1719938735574,0.5065058,3419.4,3419.0,0.6180981]
[1719938735877,0.5065058,3419.3,3419.0,0.6180981]
[1719938736158,0.5065058,3419.2,3419.1,3.95562774]
[1719938736366,0.30498096,3419.6,3419.1,3.95562774]
[1719938736568,0.50649706,3419.5,3419.1,3.95562774]
[1719938736742,0.50649706,3419.5,3419.2,2.92463]
[1719938736948,0.30498096,3419.6,3419.3,2.98304699]
[1719938737167,0.30498096,3419.6,3419.3,3.37859876]
[1719938737168,0.5064957,3419.5,3419.3,3.37859876]
[1719938737482,0.50648872,3419.4,3419.3,3.37859876]
[1719938738362,0.30498096,3419.6,3419.5,2.9244]
[1719938738572,0.50645516,3419.6,3419.5,2.98288192]
[1719938738874,0.50645516,3419.6,3419.5,3.96100129]
[1719938739236,0.50645516,3419.6,3419.5,3.90251937]
[1719938739769,0.50645516,3419.6,3419.5,3.95443958]
[1719938739975,0.50645516,3419.6,3419.5,4.01292]
[1719938740189,0.30491915,3420.0,3419.6,2.92426]
[1719938740482,0.50643865,3419.9,3419.7,0.693718]
[1719938740653,0.50643865,3419.8,3419.7,0.7456034]
[1719938741984,0.50643865,3419.8,3419.7,3.6698334]
[1719938742185,2.3093,3420.2,3419.8,2.92412]
[1719938742473,0.50639937,3420.1,3419.8,2.92412]
[1719938742630,0.50639937,3420.0,3419.8,2.92412]
[1719938742830,0.50639937,3420.1,3419.9,0.05177119]
[1719938743030,0.50639937,3420.1,3419.8,2.92412]
[1719938743277,3.76920752,3420.2,3420.0,0.05175379]
[1719938743443,0.50641221,3420.0,3419.9,0.05177119]
[1719938743649,1.66141221,3420.0,3419.5,5.84872]
[1719938743965,0.50641221,3419.9,3419.6,2.92428]
[1719938745447,2.3978,3419.8,3419.5,3.54881718]
[1719938745967,0.50643357,3419.7,3419.5,3.54881718]
[1719938746140,2.3978,3419.8,3419.5,0.62442718]
[1719938746343,2.3978,3419.8,3419.5,3.54880718]
[1719938746559,0.50643029,3419.7,3419.6,0.3944489]
[1719938746796,0.50643044,3419.7,3419.3,0.39555177]
[1719938747069,0.50643044,3419.6,3419.1,2.92472]
[1719938747266,0.50643044,3419.5,3419.1,2.92472]
[1719938747453,0.50643044,3419.6,3419.2,0.292472]
[1719938747659,0.50645939,3419.5,3419.2,0.292472]
[1719938747862,2.3978,3419.8,3419.3,2.92456]
[1719938748077,0.50645625,3419.7,3419.4,0.6141752]
[1719938748290,0.50645625,3419.6,3419.4,0.6141752]
[1719938748467,2.3978,3419.8,3419.4,0.6141752]
[1719938748671,0.50644948,3419.7,3419.4,0.6141752]
[1719938748983,0.50644948,3419.6,3419.4,0.6141752]
[1719938749184,2.3978,3419.8,3419.4,0.6141752]
[1719938749686,0.50644374,3419.7,3419.4,0.6141752]
[1719938749861,0.50644374,3419.6,3419.4,0.6141752]
[1719938750062,0.50644374,3419.7,3419.4,0.6141752]
[1719938750284,0.50644597,3419.6,3419.4,0.6141752]
[1719938750479,2.3978,3419.8,3419.4,0.6141752]
[1719938750681,0.50644481,3419.7,3419.4,0.6141752]
[1719938750888,0.50644481,3419.6,3419.4,0.6141752]
[1719938751057,0.50644481,3419.7,3419.4,0.6141752]
[1719938751259,0.50644748,3419.6,3419.4,0.6141752]
[1719938751560,2.3978,3419.8,3419.4,0.6141752]
[1719938751749,0.5064456,3419.7,3419.4,0.6141752]
[1719938751950,0.5064456,3419.6,3419.4,0.6141752]
[1719938752150,2.3978,3419.8,3419.4,0.6141752]
[1719938752350,0.50644754,3419.7,3419.4,0.6141752]
[1719938752580,0.50644754,3419.6,3419.5,0.38311672]
[1719938752786,0.50644699,3419.6,3419.5,0.38311672]
[1719938753150,0.50643285,3419.6,3419.5,0.38311672]
[1719938754767,0.50643285,3419.6,3419.5,0.43489256]
[1719938755945,0.50643734,3419.6,3419.5,0.43489256]
[1719938757553,0.50643734,3419.6,3419.5,3.35929256]
[1719938757794,0.30502206,3419.9,3419.6,2.92431]
[1719938757958,0.30502206,3419.9,3419.7,3.43756278]
[1719938757959,0.50641033,3419.8,3419.7,3.43756278]
[1719938758502,0.50641033,3419.8,3419.7,3.37908464]
[1719938759215,0.30502206,3419.9,3419.7,3.37908464]
[1719938759494,0.50639605,3419.8,3419.7,3.37908464]
[1719938759682,0.50639693,3419.8,3419.7,3.37908464]
[1719938761695,0.50640614,3419.8,3419.7,3.37908464]
[1719938762498,0.50641433,3419.8,3419.7,3.37908464]
[1719938764909,0.30502206,3419.9,3419.8,8.17148]
[1719938765092,0.30502206,3419.9,3419.8,9.07243214]
[1719938765291,7.48,3420.5,3420.2,5.84746]
[1719938765608,0.50633107,3420.4,3420.3,0.05162216]
[1719938767885,0.5063335,3420.4,3420.2,2.92377]
[1719938768081,0.30498957,3420.5,3420.3,0.05162216]
[1719938768292,0.50634012,3420.4,3420.3,0.05162216]
[1719938769905,0.50634012,3420.4,3420.3,0.64155338]
[1719938770272,0.50634012,3420.4,3420.3,3.56527338]
[1719938771072,0.50632487,3420.4,3420.3,3.56527338]
[1719938771607,0.50633153,3420.4,3420.3,3.56527338]
[1719938773133,0.50633153,3420.4,3420.3,0.64155338]
[1719938773317,2.99103153,3420.4,3420.3,0.05162216]
[1719938773518,0.50633153,3420.4,3420.3,0.05162216]
[1719938773721,0.50633153,3420.4,3420.2,2.92379]